bitfinex/quotes_SOLUSD_20250107
["timestamp","ask_amount","ask_price","bid_price","bid_amount"]
[1736287461659,5.0,202.53,202.52,23.776884]
[1736287461870,5.0,202.53,202.52,47.29123839]
[1736287462163,10.0,202.53,202.52,23.51435439]
[1736287462337,5.0,202.53,202.52,23.51435439]
[1736287462761,10.0,202.53,202.52,23.51435439]
[1736287464038,5.0,202.53,202.52,23.51435439]
[1736287464239,10.0,202.53,202.52,23.51435439]
[1736287464438,10.0,202.53,202.51,26.47435439]
[1736287464663,10.12549,202.53,202.52,23.51435439]
[1736287464942,10.0,202.53,202.52,23.51435439]
[1736287465154,10.0,202.53,202.51,26.47435439]
[1736287465355,5.0,202.53,202.52,23.51435439]
[1736287465557,10.0,202.53,202.52,23.51435439]
[1736287466031,10.0,202.53,202.51,26.47435439]
[1736287466463,10.0,202.53,202.52,23.51435439]
[1736287467064,10.0,202.53,202.51,26.47435439]
[1736287467451,10.0,202.53,202.52,23.51435439]
[1736287467970,10.0,202.53,202.52,2.96]
[1736287468255,10.0,202.53,202.52,26.47435439]
[1736287468668,5.0,202.53,202.52,50.25123839]
[1736287469458,10.12549,202.53,202.52,2.96]
[1736287469657,5.0,202.5,202.49,14.62867973]
[1736287469966,5.0,202.46,202.4,6.6353]
[1736287470139,5.0,202.45,202.44,14.62867973]
[1736287470342,5.0,202.45,202.44,17.58867973]
[1736287471369,5.0,202.45,202.44,26.38244206]
[1736287471959,5.12549,202.45,202.42,23.42244206]
[1736287472150,5.12549,202.45,202.39,23.42244206]
[1736287472151,10.0,202.41,202.39,23.42244206]
[1736287472356,10.0,202.41,202.4,2.96]
[1736287472855,10.0,202.41,202.4,26.38244206]
[1736287473371,10.0,202.41,202.4,2.96]
[1736287473553,10.12549,202.41,202.4,2.96]
[1736287474174,10.0,202.39,202.38,23.42244206]
[1736287474363,10.0,202.39,202.38,2.96]
[1736287474563,10.0,202.39,202.37,23.42244206]
[1736287474766,10.0,202.39,202.38,2.96]
[1736287475862,5.0,202.39,202.38,46.38244206]
[1736287476061,10.0,202.39,202.38,26.38244206]
[1736287476263,5.0,202.39,202.38,26.38244206]
[1736287476463,10.0,202.39,202.38,26.38244206]
[1736287478174,2.4095,202.44,202.38,198.81222606]
[1736287478350,5.0,202.47,202.44,23.776884]
[1736287478351,2.4095,202.45,202.44,23.776884]
[1736287478549,2.4095,202.45,202.44,47.19932606]
[1736287479155,5.0,202.47,202.44,47.19932606]
[1736287479355,5.0,202.47,202.46,20.0]
[1736287479580,5.0,202.47,202.46,46.38244206]
[1736287482374,2.4095,202.48,202.46,46.38244206]
[1736287482578,2.4095,202.48,202.47,43.42244206]
[1736287482780,7.4095,202.48,202.47,43.42244206]
[1736287482962,7.4095,202.5,202.47,43.42244206]
[1736287483163,2.4095,202.52,202.5,23.776884]
[1736287483364,2.4095,202.52,202.51,23.42244206]
[1736287485379,2.4095,202.54,202.53,20.0]
[1736287485682,2.4095,202.54,202.53,70.09932606]
[1736287485871,5.0,202.55,202.53,70.09932606]
[1736287486055,2.4095,202.56,202.54,47.19932606]
[1736287486261,7.4095,202.56,202.55,23.42244206]
[1736287487185,7.53499,202.56,202.55,23.42244206]
[1736287487372,0.12549,202.53,202.52,23.42244206]
[1736287487566,6.9095,202.52,202.5,23.42244206]
[1736287487766,6.9095,202.52,202.51,26.32244206]
[1736287488787,6.9095,202.52,202.51,23.42244206]
[1736287488988,6.9095,202.52,202.51,26.32244206]
[1736287490081,7.03499,202.52,202.51,2.9]
[1736287490282,6.9095,202.5,202.49,23.42244206]
[1736287490490,6.9095,202.5,202.49,26.32244206]
[1736287493083,6.9095,202.5,202.49,2.9]
[1736287493484,7.03499,202.5,202.49,2.9]
[1736287493907,6.9095,202.45,202.44,14.63746861]
[1736287494216,6.9095,202.45,202.44,17.53746861]
[1736287495168,1.9095,202.45,202.44,41.31435261]
[1736287496393,1.9095,202.45,202.44,23.776884]
[1736287496577,6.9095,202.43,202.41,14.63746861]
[1736287496776,6.9095,202.43,202.42,2.9]
[1736287497794,6.9095,202.43,202.42,17.53746861]
[1736287499680,5.0,202.43,202.42,17.53746861]
[1736287499879,6.9095,202.43,202.42,17.53746861]
[1736287500275,5.0,202.43,202.42,17.53746861]
[1736287500679,6.9095,202.43,202.42,17.53746861]
[1736287501473,1.9095,202.43,202.42,17.53746861]
[1736287501670,6.9095,202.43,202.42,17.53746861]
[1736287501876,1.9095,202.43,202.42,17.53746861]
[1736287502078,5.0,202.47,202.46,43.776884]
[1736287502297,6.652,202.6,202.46,43.776884]
[1736287502298,6.9095,202.55,202.52,20.0]
[1736287502499,6.9095,202.55,202.54,14.63746861]
[1736287502675,1.9095,202.55,202.54,14.63746861]
[1736287502870,6.9095,202.55,202.54,38.41435261]
[1736287503097,1.9095,202.55,202.54,38.41435261]
[1736287503276,6.9095,202.59,202.55,23.776884]
[1736287503485,6.9095,202.59,202.58,14.63746861]
[1736287504990,6.0862,202.69,202.58,38.41435261]
[1736287504991,6.9095,202.61,202.58,38.41435261]
[1736287505172,1.9095,202.61,202.6,34.63746861]
[1736287505383,1.9095,202.61,202.6,43.38232527]
[1736287505989,6.9095,202.61,202.6,43.38232527]
[1736287506194,1.9095,202.61,202.6,73.38232527]
[1736287506690,6.9095,202.61,202.6,73.38232527]
[1736287508499,6.9095,202.63,202.6,73.38232527]
[1736287508706,1.9095,202.61,202.6,50.0]
[1736287508899,1.9095,202.61,202.6,76.28232527]
[1736287509091,6.9095,202.63,202.6,76.28232527]
[1736287509289,6.9095,202.63,202.62,23.38232527]
[1736287509815,6.9095,202.63,202.62,53.38232527]
[1736287510901,1.9095,202.63,202.62,77.15920927]
[1736287511110,5.0,202.67,202.63,23.776884]
[1736287511288,5.0,202.67,202.66,47.15920927]
[1736287511490,6.9095,202.71,202.66,23.38232527]
[1736287511808,6.9095,202.71,202.7,23.38232527]
[1736287511986,6.9095,202.71,202.7,26.28232527]
[1736287512883,1.9095,202.71,202.7,26.28232527]
[1736287513081,1.9095,202.71,202.7,56.28232527]
[1736287513704,6.9095,202.73,202.71,23.776884]
[1736287514010,6.9095,202.73,202.7,80.05920927]
[1736287514011,6.9095,202.71,202.7,30.0]
[1736287514178,6.9095,202.71,202.7,2.8]
[1736287514512,6.9095,202.71,202.7,26.18232527]
[1736287514817,5.0,202.73,202.71,23.776884]
[1736287515108,5.0,202.73,202.72,47.15920927]
[1736287515403,5.0,202.73,202.72,23.38232527]
[1736287520150,0.12549,202.78,202.65,142.457]
[1736287520151,6.9095,202.69,202.65,142.457]
[1736287520434,6.9095,202.65,202.63,23.38232527]
[1736287520601,6.9095,202.65,202.64,26.18232527]
[1736287520803,6.9095,202.65,202.64,49.95920927]
[1736287521122,6.9095,202.65,202.64,26.18232527]
[1736287521614,1.9095,202.65,202.64,49.95920927]
[1736287522351,5.0,202.67,202.65,23.776884]
[1736287522622,5.0,202.69,202.67,23.776884]
[1736287522835,5.0,202.69,202.68,47.15920927]
[1736287523006,1.9095,202.72,202.69,23.776884]
[1736287523209,1.9095,202.72,202.69,47.15920927]
[1736287523842,1.9095,202.72,202.71,23.38232527]
[1736287524530,1.9095,202.74,202.72,23.776884]
[1736287524831,1.9095,202.74,202.71,53.38232527]
[1736287524832,1.9095,202.74,202.73,26.18232527]
[1736287525037,1.9095,202.74,202.73,2.8]
[1736287525649,1.9095,202.74,202.73,26.18232527]
[1736287527362,1.9095,202.74,202.73,2.8]
[1736287527526,1.9095,202.74,202.73,17.40145806]
[1736287532839,1.9095,202.74,202.73,41.17834206]
[1736287533043,5.0,202.75,202.74,23.776884]
[1736287533243,5.0,202.75,202.74,38.37834206]
[1736287534354,1.9095,202.77,202.76,43.776884]
[1736287534642,5.0,202.82,202.79,23.776884]
[1736287534843,5.0,202.85,202.82,23.776884]
[1736287535146,6.9095,202.9,202.85,53.776884]
[1736287535448,1.9095,202.89,202.88,20.0]
[1736287535746,1.9095,202.89,202.88,50.0]
[1736287536051,1.9095,202.89,202.88,73.776884]
[1736287536227,1.9095,202.89,202.88,88.37834206]
[1736287537649,1.9095,202.89,202.88,64.60145806]
[1736287538344,1.9095,202.89,202.88,44.60145806]
[1736287540139,1.9095,202.89,202.88,30.0]
[1736287540340,1.9095,202.89,202.88,32.8]
[1736287541640,1.9095,202.89,202.88,47.40145806]
[1736287542146,1.9095,202.89,202.88,32.8]
[1736287545260,1.9095,202.89,202.88,2.8]
[1736287545446,1.9095,202.89,202.88,17.40145806]
[1736287546250,1.9095,202.89,202.88,2.8]
[1736287546563,5.0,202.88,202.86,14.60145806]
[1736287546745,1.9095,202.87,202.86,14.60145806]
[1736287546932,1.9095,202.87,202.86,2.68]
[1736287548058,5.0,202.86,202.83,38.37834206]
[1736287548240,5.12549,202.82,202.81,14.60145806]
[1736287548447,6.9095,202.8,202.78,14.60145806]
[1736287548648,6.9095,202.8,202.79,2.68]
[1736287550374,6.9095,202.8,202.77,14.60145806]
[1736287550672,6.9095,202.78,202.77,14.60145806]
[1736287550839,6.9095,202.78,202.77,17.28145806]
[1736287551037,11.04444998,228.14,202.87,0.5085]
[1736287551038,4.4915,202.94,202.87,0.5085]
[1736287551244,5.0,202.95,202.88,17.28145806]
[1736287551466,0.12549,202.92,202.85,15.10995806]
[1736287551667,0.12549,202.92,202.89,2.68]
[1736287551959,0.12549,202.93,202.89,2.68]
[1736287552737,4.4915,202.96,202.89,2.68]
[1736287552946,5.0,202.98,202.89,17.28145806]
[1736287553141,5.0,202.98,202.9,15.10995806]
[1736287553142,0.12549,202.97,202.9,15.10995806]
[1736287553347,0.12549,202.97,202.92,0.5085]
[1736287554147,5.12549,203.0,202.92,0.5085]
[1736287554669,0.12549,203.0,202.94,0.5085]
[1736287554853,0.12549,203.0,202.92,15.10995806]
[1736287555062,6.04918894,203.0,202.92,0.5085]
[1736287555265,5.12549,203.0,202.92,0.5085]
[1736287555461,5.12549,203.0,202.92,23.83035569]
[1736287555649,5.12549,203.0,202.92,0.5085]
[1736287556176,0.12549,203.0,202.92,23.83035569]
[1736287556368,6.6068,203.02,202.94,0.5085]
[1736287556583,6.6068,203.02,202.94,23.83035569]
[1736287556750,0.12549,203.01,202.94,23.83035569]
[1736287557245,0.12549,203.01,202.94,0.5085]
[1736287557772,0.12549,203.01,202.93,23.32185569]
[1736287558348,0.12549,203.01,202.95,23.83035569]
[1736287560178,20.0,203.03,202.97,23.32185569]
[1736287560378,20.0,203.05,202.99,23.32185569]
[1736287560560,17.3778,203.08,203.0,0.5085]
[1736287560752,0.12549,203.05,203.0,0.5085]
[1736287560955,0.12549,203.05,202.96,23.83035569]
[1736287561154,0.12549,203.05,202.97,2.68]
[1736287561457,0.12549,203.05,202.98,0.5085]
[1736287561864,9.91503374,203.06,202.98,1.0085]
[1736287562275,20.12549,203.03,202.96,1.0085]
[1736287562469,4.61699,203.01,202.97,2.68]
[1736287562871,0.12549,202.99,202.92,1.0085]
[1736287563170,0.12549,202.99,202.93,2.68]
[1736287563373,0.12549,202.99,202.94,2.68]
[1736287563869,0.12549,202.97,202.92,1.0085]
[1736287564068,0.12549,202.97,202.95,2.68]
[1736287564975,0.12549,202.95,202.9,2.68]
[1736287565368,0.12549,202.95,202.9,3.1885]
[1736287566682,20.0,202.98,202.91,0.5]
[1736287566978,20.0,202.98,202.92,0.5085]
[1736287567488,0.12549,202.97,202.92,0.5085]
[1736287570686,6.1348,203.01,202.92,23.83035569]
[1736287570864,10.6348,203.01,202.93,0.5]
[1736287571064,6.1348,203.01,202.93,0.5]
[1736287571569,0.12549,203.0,202.93,0.5]
[1736287576384,0.12549,203.0,202.93,15.0742938]
[1736287576588,0.12549,203.0,202.92,0.5085]
[1736287576589,10.77706729,203.05,202.97,14.5742938]
[1736287576771,11.70062292,203.05,202.97,14.5742938]
[1736287576971,0.12549,203.01,202.98,2.66]
[1736287579290,0.12549,203.01,202.95,0.5]
[1736287579489,20.12549,203.01,202.96,2.66]
[1736287580596,0.12549,203.01,202.96,2.66]
[1736287581265,0.12549,202.96,202.91,0.5]
[1736287581470,0.12549,202.96,202.84,8.2125]
[1736287581471,0.12549,202.94,202.88,1.0085]
[1736287581689,4.5,202.94,202.88,2.66]
[1736287581892,1.04958385,202.93,202.87,2.66]
[1736287582071,0.12549,202.9,202.87,2.66]
[1736287582272,20.12549,202.9,202.87,2.66]
[1736287582476,0.12549,202.88,202.82,0.5]
[1736287582691,0.12549,202.87,202.83,2.66]
[1736287582992,0.92424448,202.89,202.83,2.66]
[1736287583191,0.12549,202.88,202.81,0.5085]
[1736287583375,20.12549,202.86,202.79,0.5085]
[1736287583694,0.12549,202.84,202.76,15.0742938]
[1736287583879,0.12549,202.84,202.77,3.1685]
[1736287584990,20.12549,202.84,202.78,17.7342938]
[1736287585289,20.12549,202.84,202.78,26.51285304]
[1736287585791,20.12549,202.84,202.78,3.16]
[1736287586802,20.12549,202.84,202.78,26.51285304]
[1736287587170,0.12549,202.84,202.79,23.35285304]
[1736287587397,8.9915,202.9,202.82,23.35285304]
[1736287587586,20.0,202.87,202.79,24.36135304]
[1736287587770,0.12549,202.86,202.79,24.36135304]
[1736287588188,0.12549,202.86,202.8,23.35285304]
[1736287588493,0.12549,202.86,202.79,24.36135304]
[1736287589082,0.12549,202.86,202.79,1.0085]
[1736287589926,5.54984562,202.86,202.77,0.5085]
[1736287590112,20.12549,202.84,202.74,24.36135304]
[1736287590276,20.12549,202.82,202.78,2.66]
[1736287590477,20.12549,202.82,202.77,0.5]
[1736287590478,20.12549,202.82,202.77,3.16]
[1736287592140,20.12549,202.84,202.77,2.66]
[1736287592338,0.12549,202.83,202.77,3.16]
[1736287592497,0.12549,202.81,202.77,2.66]
[1736287593212,20.12549,202.84,202.77,2.66]
[1736287593419,20.12549,202.84,202.77,3.16]
[1736287593620,20.12549,202.84,202.78,2.66]
[1736287594204,21.04995248,202.84,202.78,2.66]
[1736287594423,20.12549,202.84,202.78,2.66]
[1736287595211,21.04995255,202.84,202.78,2.66]
[1736287595415,20.12549,202.84,202.78,2.66]
[1736287596728,24.62549,202.82,202.74,0.5085]
[1736287597031,0.12549,202.79,202.73,3.16]
[1736287597442,0.12549,202.79,202.73,3.6685]
[1736287597935,1.05017453,202.79,202.73,2.66]
[1736287598623,4.4915,202.81,202.73,2.66]
[1736287598818,0.92465954,202.81,202.73,26.01285304]
[1736287599123,0.12549,202.8,202.73,26.01285304]
[1736287599320,0.12549,202.78,202.73,2.66]
[1736287600028,0.12549,202.78,202.73,3.1685]
[1736287600733,10.12549,202.78,202.73,3.1685]
[1736287601315,10.12549,202.78,202.73,2.66]
[1736287602119,10.12549,202.78,202.73,23.35285304]
[1736287602330,10.12549,202.78,202.74,2.66]
[1736287603416,10.12549,202.78,202.75,23.35285304]
[1736287603622,10.12549,202.78,202.77,23.86135304]
[1736287604756,10.0,202.78,202.77,23.86135304]
[1736287606041,10.0,202.78,202.77,0.5085]
[1736287606244,10.0,202.78,202.76,23.35285304]
[1736287606447,10.12549,202.78,202.77,1.0085]
[1736287606646,10.12549,202.78,202.77,0.5085]
[1736287607132,0.12549,202.77,202.75,24.36135304]
[1736287607337,0.12549,202.77,202.75,3.6685]
[1736287609453,0.12549,202.77,202.74,2.66]
[1736287610853,0.12549,202.77,202.74,3.1685]
[1736287612250,0.12549,202.77,202.74,2.66]
[1736287612432,0.12549,202.77,202.71,0.5085]
[1736287612638,0.12549,202.77,202.72,2.66]
[1736287613052,0.12549,202.77,202.73,0.5085]
[1736287613433,0.12549,202.77,202.72,2.66]
[1736287613758,0.12549,202.77,202.72,3.1685]
[1736287617763,0.12549,202.77,202.74,15.10180148]
[1736287617935,0.12549,202.77,202.76,14.60180148]
[1736287618137,0.12549,202.77,202.75,15.11030148]
[1736287618338,0.12549,202.77,202.76,0.5]
[1736287618643,10.0,202.78,202.76,15.10180148]
[1736287618829,10.0,202.78,202.77,15.11030148]
[1736287621180,10.0,202.78,202.77,47.08558548]
[1736287622937,1.6406,202.95,202.87,0.5]
[1736287623171,1.6406,202.95,202.89,0.5085]
[1736287623338,0.92398568,202.96,202.89,0.5085]
[1736287623665,4.5,202.99,202.91,1.0085]
[1736287623964,0.9238675,202.98,202.91,1.0085]
[1736287624352,0.12549,202.97,202.91,1.0085]
[1736287624668,0.12549,202.97,202.92,14.60180148]
[1736287624843,0.12549,202.98,202.91,1.0085]
[1736287625661,0.12549,202.98,202.91,15.61030148]
[1736287625866,0.12549,202.98,202.91,1.0085]
[1736287627865,0.12549,202.98,202.92,30.0]
[1736287631068,0.12549,202.98,202.92,32.66]
[1736287631645,0.12549,202.96,202.92,2.66]
[1736287632141,0.12549,202.96,202.92,3.1685]
[1736287632763,0.12549,202.95,202.92,3.1685]
[1736287633164,0.12549,202.95,202.9,2.66]
[1736287633374,0.12549,202.93,202.88,0.5085]
[1736287633668,0.12549,202.93,202.88,2.66]
[1736287634463,20.0,202.94,202.88,3.1685]
[1736287635068,0.12549,202.93,202.88,3.1685]
[1736287635574,0.12549,202.94,202.88,3.1685]
[1736287637069,20.12549,202.92,202.84,0.5085]
[1736287637273,0.12549,202.87,202.81,0.5085]
[1736287637570,21.04984164,202.87,202.81,3.1685]
[1736287638147,21.04984164,202.87,202.81,0.5085]
[1736287638348,21.04984164,202.87,202.81,3.1685]
[1736287639170,21.04984164,202.87,202.79,0.5]
[1736287639171,0.12549,202.84,202.79,2.66]
[1736287639366,1.04997818,202.84,202.79,3.1685]
[1736287639569,0.12549,202.84,202.79,3.1685]
[1736287639776,6.098,202.9,202.79,3.1685]
[1736287639950,4.5,202.88,202.81,0.5085]
[1736287640151,1.04980951,202.87,202.81,0.5085]
[1736287641475,1.04980951,202.87,202.81,15.11030148]
[1736287641691,1.04980951,202.87,202.81,0.5085]
[1736287642074,20.12549,202.87,202.81,0.5085]
[1736287642378,20.12549,202.87,202.81,15.11030148]
[1736287642553,4.5,202.91,202.82,15.10180148]
[1736287642758,0.92425485,202.9,202.83,0.5085]
[1736287642971,20.12549,202.89,202.83,0.5085]
[1736287643656,20.12549,202.89,202.83,15.11030148]
[1736287643856,4.4915,202.92,202.84,14.60180148]
[1736287644067,8.9915,202.92,202.84,14.60180148]
[1736287644269,0.12549,202.88,202.84,14.60180148]
[1736287644466,0.12549,202.88,202.85,14.60180148]
[1736287644672,0.12549,202.88,202.84,14.60180148]
[1736287645264,20.12549,202.91,202.84,14.60180148]
[1736287645663,21.04964162,202.91,202.84,14.60180148]
[1736287645864,12.46728149,202.95,202.85,14.60180148]
[1736287645865,0.12549,202.9,202.85,14.60180148]
[1736287646068,0.12549,202.9,202.89,14.60180148]
[1736287646251,5.41546219,202.98,202.89,17.26180148]
[1736287646456,0.12549,202.96,202.89,17.26180148]
[1736287646672,1.04944456,202.96,202.89,17.26180148]
[1736287646862,0.12549,202.96,202.9,15.61030148]
[1736287647177,20.12549,202.96,202.9,0.5085]
[1736287647378,0.12549,202.94,202.9,0.5085]
[1736287648482,20.92398666,202.96,202.9,15.11030148]
[1736287648777,0.12549,202.95,202.9,15.11030148]
[1736287648967,0.12549,202.95,202.91,14.60180148]
[1736287649479,0.12549,202.95,202.9,15.11030148]
[1736287649881,0.12549,202.95,202.91,14.60180148]
[1736287650061,0.12549,202.97,202.91,15.11030148]
[1736287650260,0.12549,202.97,202.93,0.5085]
[1736287650865,20.0,202.96,202.91,0.5085]
[1736287651103,0.12549,202.95,202.89,0.5085]
[1736287652300,0.12549,202.93,202.89,0.5085]
[1736287652986,0.12549,202.94,202.91,0.5085]
[1736287653303,0.12549,202.96,202.91,15.11030148]
[1736287653467,0.12549,202.96,202.93,0.5085]
[1736287653966,0.92379592,203.01,202.96,0.5085]
[1736287654161,0.12549,203.0,202.96,0.5085]
[1736287654368,0.12549,203.0,202.96,3.6685]
[1736287654601,0.12549,203.0,202.96,17.77030148]
[1736287654804,0.12549,203.01,202.96,3.1685]
[1736287655589,0.12549,203.0,202.96,2.66]
[1736287657466,20.0,203.02,202.96,3.16]
[1736287657694,20.0,203.02,202.97,0.5085]
[1736287657901,1.04915925,203.01,202.97,0.5085]
[1736287658102,0.12549,203.01,202.97,0.5085]
[1736287659422,1.04914335,203.01,202.97,0.5085]
[1736287659895,1.04914335,203.01,202.96,3.16]
[1736287659896,1.04914335,203.01,202.96,2.66]
[1736287660093,20.0,203.0,202.96,2.66]
[1736287660310,1.04928679,202.99,202.96,2.66]
[1736287660533,0.12549,202.99,202.96,2.66]
[1736287661531,1.04926815,202.99,202.96,2.66]
[1736287662481,0.12549,202.99,202.96,2.66]
[1736287663000,1.0492827,202.99,202.96,2.66]
[1736287663397,0.12549,202.99,202.95,2.66]
[1736287663600,23.902374,202.95,202.83,3.93000304]
[1736287663799,0.12549,202.93,202.85,0.7714]
[1736287664001,0.12549,202.9,202.83,1.603]
[1736287664200,21.04977327,202.9,202.83,1.603]
[1736287664415,21.04977327,202.9,202.85,0.2714]
[1736287665120,1.04977327,202.9,202.85,0.2714]
[1736287666021,21.04977327,202.9,202.85,0.2714]
[1736287666311,0.12549,202.9,202.85,0.2714]
[1736287667504,0.12549,202.9,202.84,3.16]
[1736287667701,0.12549,202.9,202.85,0.2714]
[1736287667913,20.12549,202.9,202.85,0.2714]
[1736287668128,20.12549,202.9,202.83,1.8744]
[1736287668322,20.12549,202.9,202.72,29.70648682]
[1736287668323,20.0,202.86,202.81,2.9314]
[1736287668627,1.04991039,202.85,202.81,0.2714]
[1736287668932,0.12549,202.85,202.81,0.2714]
[1736287669413,20.12549,202.87,202.81,0.2714]
[1736287669717,0.12549,202.85,202.81,0.2714]
[1736287671338,0.12549,202.86,202.81,0.2714]
[1736287673025,20.0,202.88,202.81,0.2714]
[1736287673196,20.92433198,202.87,202.81,0.2714]
[1736287673397,0.12549,202.86,202.81,0.2714]
[1736287674821,0.12549,202.87,202.84,0.2714]
[1736287675030,0.12549,202.87,202.82,0.7714]
[1736287675230,0.12549,202.91,202.82,0.7714]
[1736287675401,0.12549,202.89,202.82,0.7714]
[1736287675604,0.12549,202.87,202.82,0.2714]
[1736287676634,0.12549,202.85,202.8,2.9314]
[1736287678201,0.12549,202.86,202.82,0.2714]
[1736287679928,0.92440554,202.86,202.82,0.2714]
[1736287680331,0.12549,202.85,202.8,3.4314]
[1736287681031,0.12549,202.87,202.8,3.4314]
[1736287681730,4.5,202.97,202.9,0.2714]
[1736287682034,0.92403588,202.96,202.9,0.2714]
[1736287682614,0.12549,202.95,202.9,0.2714]
[1736287683326,0.12549,202.95,202.89,2.66]
[1736287683510,0.12549,202.95,202.9,0.2714]
[1736287683826,0.12549,202.95,202.89,2.66]
[1736287684207,0.12549,202.93,202.89,2.66]
[1736287684402,0.12549,202.88,202.83,0.2714]
[1736287684639,1.04977634,202.88,202.83,2.9314]
[1736287684933,0.12549,202.88,202.83,2.9314]
[1736287687945,0.12549,202.88,202.84,0.5]
[1736287688246,4.5,202.94,202.85,0.2714]
[1736287688412,0.12549,202.9,202.85,0.2714]
[1736287689956,6.0799,202.98,202.87,0.2714]
[1736287690163,20.0,202.94,202.87,0.2714]
[1736287690312,21.0496459,202.93,202.87,0.2714]
[1736287693313,25.5496459,202.93,202.85,0.2714]
[1736287693620,25.5496459,202.93,202.83,0.2714]
[1736287693820,25.5496459,202.93,202.84,2.66]
[1736287698740,0.9241559,202.93,202.87,15.10180148]
[1736287698940,0.92408753,202.96,202.89,0.7714]
[1736287699123,0.12549,202.95,202.89,0.2714]
[1736287699323,0.12549,202.93,202.89,0.2714]
[1736287699522,0.12549,202.93,202.87,0.2714]
[1736287702437,0.12549,202.93,202.9,0.2714]
[1736287702641,0.12549,202.93,202.88,3.16]
[1736287702642,0.12549,202.93,202.88,2.66]
[1736287703521,20.12549,202.93,202.88,2.66]
[1736287703844,0.12549,202.91,202.87,0.2714]
[1736287706322,0.12549,202.91,202.85,3.4314]
[1736287706525,14.77983425,203.03,202.94,0.2714]
[1736287706751,14.77983425,203.03,202.99,14.87320148]
[1736287707249,14.77983425,203.03,203.0,15.10180148]
[1736287707443,7.38991712,203.11,203.03,0.2714]
[1736287707629,0.90033026,203.1,203.01,24.048284]
[1736287707837,0.12549,203.09,203.02,0.5]
[1736287708031,0.12549,203.09,203.01,0.2714]
[1736287708032,0.12549,203.09,203.05,0.5]
[1736287708227,0.12549,203.07,203.0,0.5]
[1736287708653,0.12549,203.06,203.0,0.5]
[1736287708832,1.02582026,203.06,202.98,0.5]
[1736287709153,0.12549,203.01,202.95,0.5]
[1736287709447,1.02582026,203.01,202.94,2.66]
[1736287709651,20.12549,202.98,202.89,0.5]
[1736287709952,0.12549,202.93,202.88,2.66]
[1736287710153,1.02582026,202.93,202.88,2.66]
[1736287710533,0.12549,202.93,202.88,2.66]
[1736287710741,1.02582026,202.93,202.88,2.66]
[1736287712261,1.02582026,202.93,202.88,2.9314]
[1736287712550,4.7286,203.0,202.91,0.2714]
[1736287712845,0.90033026,202.99,202.91,0.2714]
[1736287713049,0.90033026,202.99,202.93,0.2714]
[1736287713258,0.12549,202.98,202.93,0.2714]
[1736287713932,24.80270426,203.01,202.93,0.2714]
[1736287714348,0.12549,202.98,202.93,0.2714]
[1736287714657,0.90033026,202.97,202.92,6.478]
[1736287714831,0.90033026,203.0,202.92,6.478]
[1736287715229,0.12549,202.99,202.92,6.478]
[1736287715641,0.12549,202.99,202.96,0.2714]
[1736287715857,0.90033026,202.99,202.92,7.2494]
[1736287716057,0.12549,202.98,202.94,0.2714]
[1736287716445,0.12549,202.96,202.94,0.2714]
[1736287717135,0.12549,203.0,202.92,6.7494]
[1736287717330,24.62549,203.0,202.92,6.7494]
[1736287717557,0.12549,202.98,202.92,6.7494]
[1736287718359,28.402374,202.98,202.92,6.7494]
[1736287718659,0.12549,202.96,202.92,6.7494]
[1736287719154,0.12549,202.98,202.92,6.7494]
[1736287719346,0.12549,202.98,202.92,6.478]
[1736287720254,0.12549,202.96,202.92,6.478]
[1736287720461,0.12549,202.96,202.93,0.2714]
[1736287720665,0.12549,202.99,202.93,0.2714]